bitfinex/quotes_SOLUSD_20250123
["timestamp","ask_amount","ask_price","bid_price","bid_amount"]
[1737654396128,19.54524121,252.79,252.64,13.8537]
[1737654397328,19.54524121,252.77,252.64,13.8537]
[1737654397537,19.54524121,252.75,252.64,13.8537]
[1737654398034,19.54524121,252.77,252.65,23.776884]
[1737654398624,19.54524121,252.77,252.66,3.9578]
[1737654399224,19.54524121,252.77,252.67,23.776884]
[1737654399411,19.54524121,252.79,252.67,23.776884]
[1737654399610,19.57524121,252.81,252.67,23.776884]
[1737654399805,0.03,252.81,252.67,23.776884]
[1737654400015,0.03,252.81,252.69,23.776884]
[1737654400634,0.03,252.81,252.74,13.8481]
[1737654400946,0.03,252.9,252.75,23.776884]
[1737654403032,19.54524121,252.87,252.76,3.9563]
[1737654403234,19.54524121,252.85,252.76,3.9563]
[1737654403621,19.54524121,252.85,252.71,3.9571]
[1737654404026,19.54524121,252.83,252.71,3.9571]
[1737654404218,19.54524121,252.81,252.7,6.1908]
[1737654404417,19.54524121,252.79,252.7,6.1908]
[1737654404933,19.54524121,252.77,252.68,5.5716]
[1737654405129,19.54524121,252.79,252.68,5.5716]
[1737654406936,23.50104121,252.79,252.68,5.5716]
[1737654407262,19.54524121,252.81,252.69,23.776884]
[1737654408726,19.54524121,252.81,252.7,3.9572]
[1737654408932,19.54524121,252.77,252.68,5.5716]
[1737654409124,19.54524121,252.75,252.68,3.9575]
[1737654409330,19.54524121,252.75,252.66,3.9577]
[1737654409636,23.53014121,252.85,252.67,23.776884]
[1737654410345,19.54524121,252.83,252.66,3.9577]
[1737654410549,23.53014121,252.85,252.66,3.9577]
[1737654410722,19.54524121,252.83,252.68,13.8514]
[1737654410922,0.03,252.85,252.69,23.776884]
[1737654411137,0.03,252.85,252.69,335.776884]
[1737654411550,0.03,252.85,252.69,24.776884]
[1737654411737,0.03,252.85,252.71,23.776884]
[1737654411932,0.03,252.85,252.71,24.776884]
[1737654412133,0.03,252.85,252.75,23.776884]
[1737654412745,0.03,252.85,252.77,23.776884]
[1737654414540,0.03,252.85,252.77,335.776884]
[1737654414738,0.03,252.85,252.79,23.776884]
[1737654416354,0.03,252.85,252.82,20.0]
[1737654416547,0.03,252.9,252.83,25.433384]
[1737654416738,0.03,252.9,252.84,13.8426]
[1737654416940,0.03,252.9,252.84,3.955]
[1737654417341,0.03,252.9,252.85,23.776884]
[1737654418059,0.03,252.9,252.85,335.776884]
[1737654418658,0.03,252.9,252.86,3.9547]
[1737654419269,0.03,252.9,252.87,23.776884]
[1737654420466,0.03,252.9,252.85,37.618984]
[1737654421168,0.03,252.9,250.7,0.99]
[1737654421169,0.03,252.9,252.84,1.83035561]
[1737654421352,0.03,252.9,252.81,3.9555]
[1737654421740,0.03,252.9,252.82,23.776884]
[1737654422180,0.03,252.9,252.85,20.0]
[1737654422382,0.03,252.9,252.86,43.776884]
[1737654422667,19.54524121,253.06,252.88,23.776884]
[1737654422868,19.54524121,253.04,252.88,23.776884]
[1737654423078,19.54524121,253.02,252.88,23.776884]
[1737654423756,19.54524121,253.0,252.88,23.776884]
[1737654424050,19.54524121,253.0,252.87,13.8411]
[1737654424051,19.54524121,253.0,252.9,23.776884]
[1737654425369,19.54524121,252.98,252.89,3.9542]
[1737654425964,19.54524121,252.98,252.91,3.9539]
[1737654426169,19.54524121,253.02,252.91,3.9539]
[1737654426475,19.54524121,253.02,252.92,23.776884]
[1737654427173,1.6071,253.1,252.96,23.776884]
[1737654427551,1.6071,253.1,252.94,23.776884]
[1737654427850,19.54524121,253.09,252.94,23.776884]
[1737654428282,19.54524121,253.09,252.99,23.776884]
[1737654428883,19.54524121,253.09,252.96,23.776884]
[1737654429375,0.03,253.11,252.96,23.776884]
[1737654429947,0.0001,253.11,253.03,43.776884]
[1737654430374,0.0001,253.11,253.08,20.0]
[1737654430577,6.12101522,253.22,253.07,44.776884]
[1737654431142,41.88428625,253.24,253.14,1.0]
[1737654431364,6.14430282,253.31,253.16,1.0]
[1737654431772,19.54524121,253.3,253.11,1.0]
[1737654431960,19.54524121,253.3,253.09,2.0]
[1737654432274,19.54524121,253.3,253.13,20.0]
[1737654432475,19.54524121,253.38,253.21,20.0]
[1737654432643,19.54524121,253.4,253.16,2.0]
[1737654432967,19.54524121,253.38,253.18,20.0]
[1737654433156,19.54524121,253.38,253.19,1.0]
[1737654433356,19.54524121,253.4,253.16,2.0]
[1737654433567,19.54524121,253.4,253.21,23.776884]
[1737654433967,560.45172213,253.42,253.2,20.0]
[1737654433968,19.54524121,253.38,253.2,20.0]
[1737654434487,19.54524121,253.36,253.21,37.599284]
[1737654434658,19.54524121,253.32,253.21,3.9492]
[1737654434865,19.54524121,253.32,253.24,312.0]
[1737654435757,19.54524121,253.3,253.24,312.0]
[1737654435953,19.54524121,253.28,253.17,3.9498]
[1737654436363,19.54524121,253.28,253.13,1.68622036]
[1737654436564,19.54524121,253.3,253.14,20.0]
[1737654436984,19.54524121,253.28,253.14,20.0]
[1737654438187,19.54524121,253.3,253.16,23.776884]
[1737654438893,19.54524121,253.3,253.23,312.0]
[1737654439688,19.54524121,253.28,253.23,312.0]
[1737654439897,19.54524121,253.28,253.16,23.776884]
[1737654439898,19.54524121,253.28,253.17,3.9499]
[1737654440073,19.54524121,253.32,253.18,23.776884]
[1737654440408,26.17294121,253.4,253.22,23.776884]
[1737654440566,19.54524121,253.4,253.22,23.776884]
[1737654440764,19.54524121,253.4,253.27,23.776884]
[1737654440991,579.99696334,253.42,253.27,23.776884]
[1737654441378,579.99696334,253.42,253.28,13.8185]
[1737654441979,579.99696334,253.42,253.29,23.776884]
[1737654442181,19.54524121,253.4,253.29,23.776884]
[1737654442496,19.54524121,253.4,253.28,13.8185]
[1737654442497,19.54524121,253.38,253.28,3.9481]
[1737654442866,19.54524121,253.38,253.37,312.0]
[1737654443496,19.54524121,253.38,253.3,3.9477]
[1737654443695,19.54524121,253.4,253.3,3.9477]
[1737654443892,560.45172213,253.42,253.3,3.9477]
[1737654443893,19.54524121,253.38,253.3,3.9477]
[1737654444814,19.54524121,253.38,253.28,3.948]
[1737654444967,19.54524121,253.36,253.28,3.948]
[1737654445372,19.54524121,253.38,253.28,3.948]
[1737654445574,19.54524121,253.38,253.26,37.596584]
[1737654445865,19.54524121,253.4,253.26,37.596584]
[1737654446592,560.45172213,253.42,253.26,37.596584]
[1737654446593,579.99696334,253.42,253.37,312.0]
[1737654446770,560.45172213,253.42,253.37,312.0]
[1737654446973,560.45172213,253.42,253.29,20.0]
[1737654447289,579.99696334,253.42,253.26,35.27692171]
[1737654447874,579.99696334,253.42,253.27,23.776884]
[1737654448371,560.45172213,253.42,253.26,15.53442171]
[1737654448591,19.54524121,253.36,253.26,3.9485]
[1737654448789,19.54524121,253.36,253.24,3.9486]
[1737654449009,19.54524121,253.38,253.24,3.9486]
[1737654449214,19.54524121,253.38,253.25,23.776884]
[1737654450007,19.54524121,253.38,253.29,312.0]
[1737654450519,19.54524121,253.36,253.29,312.0]
[1737654450710,19.54524121,253.3,253.13,0.063]
[1737654450907,19.54524121,253.23,253.13,0.063]
[1737654451109,19.54524121,253.25,253.13,0.063]
[1737654451311,19.54524121,253.27,253.13,0.063]
[1737654451520,49.54524121,253.29,253.15,3.9501]
[1737654451720,30.0,253.29,253.16,23.776884]
[1737654451904,19.54524121,253.3,253.16,23.776884]
[1737654452112,19.54524121,253.3,253.15,37.602584]
[1737654452733,19.54524121,253.26,253.15,37.602584]
[1737654453031,19.54524121,253.26,253.15,3.9502]
[1737654453721,19.54524121,253.26,253.2,312.0]
[1737654454192,19.54524121,253.22,253.13,0.063]
[1737654454397,19.54524121,253.2,253.13,0.063]
[1737654455410,19.54524121,253.27,253.15,23.776884]
[1737654455620,19.54524121,253.29,253.15,23.776884]
[1737654456201,5.04,253.39,253.17,23.776884]
[1737654456202,0.03,253.3,253.17,23.776884]
[1737654456728,19.54524121,253.29,253.17,23.776884]
[1737654457325,19.54524121,253.29,253.23,312.0]
[1737654457517,19.54524121,253.27,253.17,23.776884]
[1737654457834,19.54524121,253.27,253.14,3.9503]
[1737654458207,19.54524121,253.25,253.14,3.9503]
[1737654458408,19.54524121,253.23,253.14,3.9503]
[1737654458616,19.54524121,253.25,253.14,3.9503]
[1737654458830,19.54524121,253.27,253.14,3.9503]
[1737654459337,39.54524121,253.31,253.15,23.776884]
[1737654459735,8.3035,253.35,253.15,23.776884]
[1737654459919,19.54524121,253.34,253.15,23.776884]
[1737654460120,19.54524121,253.32,253.15,23.776884]
[1737654460317,19.54524121,253.32,253.16,9.8751]
[1737654460510,19.54524121,253.3,253.22,312.0]
[1737654460710,19.54524121,253.23,253.13,0.063]
[1737654461044,19.54524121,253.16,253.13,0.063]
[1737654461337,27.33364121,253.2,253.13,0.063]
[1737654461806,27.33364121,253.2,253.13,4.0134]
[1737654462003,5.04,253.25,253.13,4.0134]
[1737654462004,19.54524121,253.23,253.13,4.0134]
[1737654462216,5.04,253.25,253.13,4.0134]
[1737654463544,25.69854121,253.26,253.13,4.0134]
[1737654463833,19.54524121,253.24,253.17,312.0]
[1737654464130,19.54524121,253.22,253.17,312.0]
[1737654464635,19.54524121,253.24,253.17,312.0]
[1737654465215,19.54524121,253.24,253.16,3.95]
[1737654466110,19.54524121,253.24,253.13,0.063]
[1737654466316,19.54524121,253.24,253.14,3.9503]
[1737654466815,19.54524121,253.22,253.14,3.9503]
[1737654467362,5.5835,253.27,253.14,3.9503]
[1737654467507,19.54524121,253.31,253.15,23.776884]
[1737654467837,19.54524121,253.29,253.15,23.776884]
[1737654468205,19.54524121,253.27,253.14,9.8759]
[1737654468610,19.54524121,253.27,253.15,3.9502]
[1737654468806,19.54524121,253.25,253.15,3.9502]
[1737654469031,19.54524121,253.29,253.16,23.776884]
[1737654469237,19.54524121,253.31,253.16,23.776884]
[1737654469421,19.54524121,253.31,253.15,13.8257]
[1737654470016,19.54524121,253.29,253.15,13.8257]
[1737654470317,19.54524121,253.27,253.15,13.8257]
[1737654470514,19.54524121,253.25,253.15,13.8257]
[1737654471242,19.54524121,253.25,253.15,325.8257]
[1737654471539,19.54524121,253.23,253.15,315.9502]
[1737654471836,19.54524121,253.25,253.15,3.9502]
[1737654472029,3.948,253.29,253.15,3.9502]
[1737654472030,19.54524121,253.27,253.15,3.9502]
[1737654472232,23.49384121,253.25,253.15,3.9502]
[1737654472435,19.54524121,253.23,253.15,3.9502]
[1737654473339,19.54524121,253.26,253.15,3.9502]
[1737654473537,1.5441,253.33,253.16,23.776884]
[1737654474133,21.08934121,253.33,253.16,23.776884]
[1737654474740,21.08934121,253.33,253.14,20.032]
[1737654474930,19.54524121,253.31,253.24,312.0]
[1737654475438,19.54524121,253.31,253.24,315.9487]
[1737654475749,19.54524121,253.29,253.24,3.9487]
[1737654476551,19.54524121,253.29,253.18,9.8743]
[1737654478645,19.54524121,253.29,253.22,312.0]
[1737654479146,19.54524121,253.29,253.23,3.9489]
[1737654480143,19.54524121,253.29,253.18,9.8743]
[1737654480646,19.54524121,253.29,253.19,23.776884]
[1737654480842,19.54524121,253.31,253.19,23.776884]
[1737654481044,19.54524121,253.33,253.19,23.776884]
[1737654481235,0.03,253.29,253.19,23.776884]
[1737654481960,0.03,253.29,253.19,25.324984]
[1737654482253,0.03,253.29,253.26,3.9485]
[1737654484033,19.57524121,253.29,253.2,3.9494]
[1737654484348,19.54524121,253.27,253.16,3.95]
[1737654484847,19.54524121,253.27,253.16,13.8251]
[1737654485228,19.54524121,253.25,253.16,3.95]
[1737654485856,19.54524121,253.25,253.16,315.95]
[1737654486353,19.54524121,253.27,253.16,315.95]
[1737654487141,19.54524121,253.27,253.16,325.8251]
[1737654487745,19.54524121,253.25,253.16,3.95]
[1737654490055,19.54524121,253.23,253.16,3.95]
[1737654490256,19.54524121,253.21,253.15,0.063]
[1737654490446,19.54524121,253.21,253.15,4.0131]
[1737654490852,19.54524121,253.21,253.15,0.063]
[1737654491061,19.54524121,253.21,253.15,4.0131]
[1737654491362,19.54524121,253.25,253.15,4.0131]
[1737654491952,19.54524121,253.27,253.15,13.8886]
[1737654493470,19.54524121,253.25,253.15,13.8886]
[1737654493658,19.54524121,253.23,253.15,4.0131]
[1737654493871,19.54524121,253.23,253.15,316.0131]
[1737654494449,19.54524121,253.25,253.15,316.0131]
[1737654494748,19.54524121,253.27,253.16,23.776884]
[1737654494939,19.54524121,253.23,253.15,13.8886]
[1737654495152,19.54524121,253.25,253.15,13.8886]
[1737654495548,19.54524121,253.27,253.15,13.8886]
[1737654495760,19.57524121,253.29,253.16,23.776884]
[1737654496066,0.03,253.29,253.18,6.0839]
[1737654497261,0.03,253.29,253.19,23.776884]
[1737654497648,0.03,253.29,253.25,3.9486]
[1737654498567,19.54524121,253.27,253.19,3.9496]
[1737654499362,19.54524121,253.25,253.19,3.9496]
[1737654499556,19.54524121,253.25,253.16,3.95]
[1737654501246,19.54524121,253.25,253.16,315.95]
[1737654503657,19.54524121,253.27,253.16,3.95]
[1737654504242,19.57524121,253.29,253.16,3.95]
[1737654504448,0.03,253.29,253.17,23.776884]
[1737654504754,0.03,253.29,253.16,13.8251]
[1737654504958,19.57524121,253.29,253.16,13.8251]
[1737654505165,19.54524121,253.21,253.15,0.063]
[1737654505355,19.54524121,253.17,253.15,0.063]
[1737654506064,19.54524121,253.17,253.16,0.063]
[1737654506471,20.0,253.14,253.13,0.063]
[1737654506772,20.0,253.14,253.0,11.63255591]
[1737654506773,96.39838242,253.14,253.0,11.63255591]
[1737654507069,19.54524121,253.04,253.0,11.63255591]
[1737654509079,49.54524121,253.04,253.0,11.63255591]
[1737654509882,74.99114121,253.04,253.0,11.63255591]
[1737654510383,49.54524121,253.04,252.9,4.017]
[1737654510552,30.0,253.03,252.91,23.776884]
[1737654511048,19.54524121,253.06,252.91,23.776884]
[1737654511259,19.54524121,253.08,253.01,312.0]
[1737654511478,19.54524121,253.08,252.91,23.776884]
[1737654511866,19.54524121,253.08,252.93,23.776884]
[1737654513465,19.54524121,253.1,252.93,23.776884]
[1737654513666,19.54524121,253.1,252.95,23.776884]
[1737654513982,6.5079,253.14,252.96,13.836]
[1737654513983,19.54524121,253.13,252.96,13.836]
[1737654514367,19.54524121,253.13,253.01,312.0]
[1737654515984,19.54524121,253.11,252.96,15.48200223]
[1737654516185,19.54524121,253.15,252.97,23.776884]
[1737654516375,555.90009516,253.16,253.01,23.776884]
[1737654516582,555.90009516,253.16,253.05,23.776884]
[1737654518273,555.90009516,253.16,253.07,23.776884]
[1737654518483,0.03,253.13,253.07,23.776884]
[1737654518683,0.03,253.13,253.07,31.831084]
[1737654518888,0.03,253.13,253.12,335.776884]
[1737654519084,21.09764121,253.29,253.13,23.776884]
[1737654519490,21.09764121,253.29,253.12,23.776884]
[1737654520189,1.5524,253.29,253.13,13.8268]
[1737654521382,41.09764121,253.29,253.13,13.8268]
[1737654521582,19.54524121,253.27,253.13,13.8268]
[1737654521784,19.54524121,253.25,253.13,3.9505]
[1737654522397,19.54524121,253.25,253.13,315.9505]
[1737654523270,19.54524121,253.23,253.13,315.9505]
[1737654523592,19.54524121,253.23,253.13,3.9505]
[1737654524709,19.54524121,253.23,253.1,27.727884]
[1737654525201,19.54524121,253.21,253.1,3.951]
[1737654526305,23.49454121,253.21,253.1,3.951]
[1737654526505,19.54524121,253.19,253.1,3.951]
[1737654527705,19.54524121,253.19,253.04,9.8797]
[1737654527706,19.54524121,253.19,253.08,3.9511]
[1737654527893,19.54524121,253.17,253.08,3.9511]
[1737654528209,19.54524121,253.15,253.02,3.9522]
[1737654528410,19.54524121,253.15,253.03,23.776884]
[1737654528614,23.49554121,253.15,253.02,3.9522]
[1737654528909,19.54524121,253.13,253.02,3.9522]
[1737654529492,19.54524121,253.13,253.02,315.9522]
[1737654529709,19.54524121,253.13,253.1,0.063]
[1737654530410,19.54524121,253.11,253.1,0.063]
[1737654530996,30.0,253.12,253.1,0.063]
[1737654531403,21.19254121,253.17,253.1,4.0139]
[1737654532113,0.03,253.19,253.1,4.0139]
[1737654532814,0.03,253.19,253.11,23.776884]
[1737654533115,0.03,253.19,253.1,13.8914]
[1737654533315,0.03,253.19,253.11,23.776884]
[1737654533911,0.03,253.19,253.12,312.0]
[1737654534114,0.03,253.19,253.13,3.9505]
[1737654537314,0.03,253.19,253.14,23.776884]
[1737654537613,0.03,253.19,253.15,312.0]
[1737654537918,0.03,253.19,253.16,3.95]
[1737654539130,19.54524121,253.35,253.17,31.655484]
[1737654540224,19.54524121,253.35,253.19,23.776884]
[1737654541028,19.54524121,253.35,253.23,312.0]
[1737654541332,23.49234121,253.35,253.24,3.9488]
[1737654541533,19.54524121,253.33,253.24,3.9488]
[1737654541826,19.54524121,253.28,253.23,312.0]
[1737654542029,19.54524121,253.26,253.16,1.6760332]
[1737654542205,19.54524121,253.26,253.14,3.9503]
[1737654542403,0.03,253.19,253.14,27.727184]
[1737654542612,0.03,253.19,253.14,13.8262]
[1737654543024,0.03,253.19,253.15,23.776884]
[1737654543421,0.03,253.19,253.16,3.95]
[1737654544906,0.03,253.19,253.14,3.9502]
[1737654545137,0.03,253.19,253.12,3.9506]
[1737654549132,19.54524121,253.16,253.1,0.063]
[1737654549337,19.54524121,253.14,253.1,0.063]
[1737654550139,30.0,253.13,253.1,0.063]
[1737654551123,30.0,253.13,253.1,4.0139]
[1737654551318,30.0,253.13,253.1,0.063]
[1737654553239,30.0,253.13,253.1,4.0139]
[1737654555223,30.0,253.13,253.1,0.063]
[1737654561890,30.0,253.13,253.1,4.0139]
[1737654562457,30.0,253.13,253.1,316.0139]
[1737654563569,20.03,253.19,253.1,316.0139]
[1737654564254,0.03,253.19,253.1,316.0139]
[1737654565002,3.9796,253.19,253.1,316.0139]
[1737654566095,30.0,253.12,253.1,316.0139]
[1737654566384,30.0,253.12,253.1,4.0139]
[1737654566986,30.0,253.12,253.1,0.063]
[1737654567296,46.12671258,253.12,253.1,0.063]
[1737654567472,1.5042,253.11,253.1,0.063]
[1737654567673,31.5042,253.11,253.1,0.063]
[1737654568885,31.5042,253.11,253.1,0.0001]
[1737654568886,57.2842,253.11,253.1,0.0001]
[1737654569079,44.78,253.06,252.92,3.9537]
[1737654569272,12.17601258,253.0,252.91,3.9538]
[1737654569464,12.17601258,253.0,252.9,0.063]
[1737654570278,30.0,252.99,252.94,3.9535]
[1737654570790,30.0,252.99,252.95,23.776884]
[1737654571762,6.16594418,253.09,252.95,23.776884]
[1737654572265,6.16594418,253.09,252.96,9.8829]
[1737654572666,3.9511,253.09,252.94,3.9535]
[1737654572869,3.9511,253.09,252.94,315.9535]
[1737654573065,12.17601258,253.08,252.94,3.9535]
[1737654573286,12.17601258,253.06,252.94,3.9535]
[1737654573467,12.17601258,253.06,252.94,3.4535]
[1737654573869,16.12761258,253.06,252.94,3.4535]
[1737654574272,12.17601258,253.02,252.94,3.4535]
[1737654574481,12.17601258,253.02,252.92,3.9536]
[1737654574796,12.17601258,253.02,252.93,4.0166]
[1737654574968,30.0,252.98,252.93,4.0166]
[1737654575888,30.0,252.98,252.93,0.063]
[1737654576684,42.17601258,252.98,252.93,0.063]
[1737654578215,46.12881258,252.98,252.93,0.063]
[1737654578879,42.17601258,252.98,252.93,0.063]
[1737654579682,46.12891258,252.98,252.93,0.063]
[1737654580197,12.17601258,252.96,252.93,0.063]
[1737654580402,30.0,252.95,252.93,0.063]
[1737654580598,12.17601258,252.94,252.93,0.063]
[1737654581290,46.12951258,252.94,252.93,0.063]
[1737654582600,30.0,252.94,252.93,0.063]
[1737654585308,12.17601258,252.96,252.93,0.063]
[1737654586727,30.0,252.94,252.93,0.063]
[1737654587895,42.17601258,252.94,252.93,0.063]
[1737654588808,16.12951258,252.94,252.93,0.063]
[1737654589608,12.17601258,252.94,252.93,0.063]
[1737654589908,12.17601258,252.98,252.93,0.063]
[1737654590303,13.67941258,253.0,252.93,0.063]
[1737654590609,1.5034,253.0,252.93,4.0166]
[1737654590801,12.17601258,253.04,252.93,4.0166]
[1737654591605,13.77151258,253.06,252.93,13.9007]
[1737654591798,1.5955,253.06,252.93,13.9007]
[1737654592003,6.19594418,253.1,252.93,13.9007]
[1737654592209,6.19594418,253.1,252.94,23.776884]
[1737654593012,6.19594418,253.1,252.96,23.776884]
[1737654593410,0.03,253.1,252.96,23.776884]
[1737654594104,0.03,253.1,252.99,20.0]
[1737654594404,0.03,253.1,253.0,23.776884]
[1737654594602,0.03,253.1,253.02,23.776884]
[1737654595205,0.03,253.1,253.03,3.9521]
[1737654596514,0.03,253.1,253.01,6.1215]
[1737654596698,0.03,253.1,252.95,8.0409]
[1737654597013,12.17601258,253.09,252.96,23.776884]
[1737654597218,12.17601258,253.09,252.96,27.729984]
[1737654597718,0.03,253.1,252.96,37.612884]
[1737654599895,0.03,253.1,252.96,13.836]
[1737654600101,12.17601258,253.05,252.96,3.9531]
[1737654600825,30.0,253.03,252.96,3.9531]
[1737654601002,42.17601258,253.03,252.96,3.9531]
[1737654601197,42.17601258,253.03,252.93,0.063]
[1737654601401,12.17601258,252.99,252.93,0.063]
[1737654601905,30.0,252.98,252.93,4.0165]
[1737654602429,13.82411258,253.07,252.93,13.9006]
[1737654602629,12.17601258,253.09,252.94,23.776884]
[1737654603038,0.03,253.1,252.94,23.776884]
[1737654603328,0.03,253.1,252.95,13.8366]
[1737654603741,0.03,253.1,252.96,23.776884]
[1737654603900,0.03,253.1,253.0,23.776884]
[1737654604104,0.03,253.1,253.02,25.306884]
[1737654605125,0.03,253.1,253.01,6.3175]
[1737654605322,12.20601258,253.1,252.96,1.613]
[1737654605623,12.17601258,253.08,252.97,3.953]
[1737654606024,12.20601258,253.1,252.97,3.953]
[1737654606228,0.03,253.1,252.98,23.776884]
[1737654607538,0.03,253.1,253.02,13.8328]
[1737654608804,0.03,253.1,253.05,23.776884]
[1737654609024,0.03,253.1,253.04,13.8317]
[1737654609236,0.03,253.1,252.94,3.9535]
[1737654609237,12.17601258,253.06,252.94,3.9535]
[1737654609546,0.03,253.1,252.94,3.9535]
[1737654609547,12.17601258,253.04,252.94,3.9535]
[1737654609843,30.0,253.03,252.94,3.9535]
[1737654611933,19.49548514,253.03,252.94,3.9535]
[1737654612125,19.49548514,253.01,252.92,3.9537]
[1737654612535,23.44788514,253.01,252.92,3.9537]
[1737654613630,19.49548514,253.03,252.93,4.0165]
[1737654613817,19.49548514,253.01,252.93,0.063]
[1737654614145,19.49548514,252.99,252.93,0.063]
[1737654614439,19.49548514,252.99,252.94,0.063]
[1737654614943,19.49548514,252.97,252.94,0.063]
[1737654615133,19.49548514,252.95,252.94,0.063]
[1737654616138,49.49548514,252.95,252.94,0.063]
[1737654616652,30.0,252.95,252.94,0.063]
[1737654617850,19.49548514,252.97,252.94,0.063]
[1737654618053,19.49548514,252.95,252.94,0.063]
[1737654618761,19.49548514,252.97,252.94,0.063]
[1737654618929,30.0,252.95,252.94,0.063]
[1737654619655,19.49548514,252.99,252.94,0.063]
[1737654620028,23.44818514,252.99,252.94,0.063]
[1737654620224,19.49548514,252.97,252.94,0.063]
[1737654620721,19.49548514,252.99,252.94,0.063]
[1737654621145,19.49548514,253.01,252.94,4.0164]
[1737654621324,19.49548514,253.01,252.94,0.063]
[1737654622127,19.49548514,252.99,252.94,0.063]
[1737654622730,3.9524,253.01,252.94,0.063]
[1737654622731,19.49548514,252.97,252.94,0.063]
[1737654622936,25.04838514,253.06,252.95,3.9533]
[1737654623151,1.6013,253.06,252.95,3.9533]
[1737654623333,21.09678514,253.06,252.95,3.9533]
[1737654623535,25.04838514,253.06,252.95,3.9533]
[1737654624928,21.09678514,253.06,252.95,3.9533]
[1737654625665,23.776884,253.05,252.95,3.9533]
[1737654625844,19.49548514,253.04,252.95,3.9533]
[1737654626150,19.49548514,253.02,252.94,0.063]
[1737654626530,19.49548514,252.96,252.94,0.063]
[1737654626749,23.776884,252.95,252.94,0.063]
[1737654626934,57.730184,252.95,252.94,0.063]
[1737654627333,59.313039,252.95,252.94,0.063]
[1737654628060,57.730184,252.95,252.94,0.063]
[1737654628753,59.313025,252.95,252.94,0.063]
[1737654628955,31.582841,252.95,252.94,0.063]
[1737654629149,30.0,252.95,252.94,0.063]
[1737654631034,53.776884,252.95,252.94,0.063]
[1737654634146,85.544984,252.95,252.94,0.063]
[1737654634355,20.0,252.87,252.84,0.063]
[1737654634659,136.48785428,252.87,252.86,0.0001]
[1737654634868,86.99236914,252.87,252.86,0.0001]
[1737654635044,63.27236914,252.87,252.86,0.0001]
[1737654635449,93.27236914,252.87,252.86,0.0001]
[1737654635758,109.70632102,252.87,252.86,0.0001]
[1737654636342,113.66092102,252.87,252.86,0.0001]
[1737654636542,126.87035804,252.87,252.86,0.0001]
[1737654636744,53.72,252.85,252.84,0.063]
[1737654637060,132.91575804,252.85,252.84,0.063]
[1737654637250,132.91575804,252.85,252.69,0.063]
[1737654637251,20.0,252.79,252.69,0.063]
[1737654637448,12.20943702,252.77,252.69,4.0203]
[1737654637655,19.53822588,252.79,252.69,4.0203]
[1737654637851,30.0,252.75,252.69,4.0203]
[1737654639446,49.53822588,252.75,252.69,4.0203]
[1737654639960,19.53822588,252.71,252.69,0.063]
[1737654640157,49.53822588,252.75,252.69,0.063]
[1737654640370,30.0,252.75,252.69,0.063]
[1737654640552,30.0,252.75,252.69,4.0203]
[1737654641270,30.0,252.75,252.69,13.9138]
[1737654642472,30.0,252.75,252.69,4.0203]
[1737654644575,19.53822588,252.84,252.69,13.9138]
[1737654645049,19.53822588,252.82,252.69,13.9138]
[1737654645843,19.53822588,252.84,252.69,13.9138]
[1737654646576,19.53822588,252.86,252.69,33.7008]
[1737654646749,19.53822588,252.88,252.69,33.7008]
[1737654646951,23.776884,252.87,252.69,33.7008]
[1737654647270,19.53822588,252.82,252.69,13.9138]
[1737654647474,19.53822588,252.82,252.69,325.9138]
[1737654648061,19.53822588,252.82,252.69,13.9138]
[1737654649078,19.53822588,252.8,252.69,13.9138]
[1737654650171,19.53822588,252.8,252.69,4.0203]
[1737654650369,19.53822588,252.78,252.69,0.063]